[Event "World Junior U20 Open 2018"]
[Site "Gebze"]
[Date "2018.09.08"]
[Round "5.76"]
[White "Fleri, Matthew"]
[Black "Yilmaz, Goktan"]
[Result "0-1"]
[ECO "B22"]
[WhiteElo "1625"]
[BlackElo "2237"]
[Annotator "NA"]
[PlyCount "102"]
[EventDate "2018.09.05"]
[EventType "swiss"]
[EventCountry "TUR"]
[SourceTitle "playchess.com"]
[Source "ChessBase"]
[SourceQuality "1"]
[TimeControl "40/5400+30:1800+30"]

1. e4 {[%emt 0:00:30]} c5 {[%emt 0:00:30]} 2. c3 {[%emt 0:00:30]} Nf6 {[%emt 0:00:30]} 3. e5 {[%emt 0:00:30]} Nd5 {[%emt 0:00:00]} 4. d4 {[%emt 0:00:30]} cxd4 {[%emt 0:00:00]} 5. Nf3 {[%emt 0:00:00]} Nc6 {[%emt 0:00:00]} 6. cxd4 {[%emt 0:00:00]} d6 {[%emt 0:00:00]} 7. Bc4 {[%emt 0:00:00]} Nb6 {[%emt 0:00:00]} 8. Bb3 {[%emt 0:00:00]} dxe5 {[%emt 0:01:00]} 9. dxe5 {[%emt 0:00:30]} Qxd1+ {[%emt 0:00:30]} 10. Bxd1 {[%emt 0:00:00]} g6 {[%emt 0:00:30] B22: Sicilian: 2 c3} 11. O-O {[%emt 0:12:00]} Bg7 {[%emt 0:00:00]} 12. Re1 {[%emt 0:01:30]} O-O {[%emt 0:01:00]} 13. b3 {[%emt 0:00:30]} Rd8 $146 {[%emt 0:02:30]} ({Predecessor:} 13... Nd5 14. Bb2 Ndb4 15. Bc3 Rd8 16. Na3 Nd3 17. Re4 Bf5 18. Re3 Bh6 19. Re2 Nc1 20. Re1 Rxd1 {0-1 (20) Simon,C (1960)-Lanka,Z (2451) Kiel 2014}) 14. Nc3 {[%emt 0:21:30]} Bg4 {[%emt 0:01:30]} 15. Bf4 {[%emt 0:03:30]} Nb4 {[%emt 0:00:30]} 16. Bg3 {[%emt 0:08:30]} Nd3 {[%emt 0:02:30]} 17. Rf1 {[%emt 0:07:30]} Rac8 {[%emt 0:02:30]} 18. Nb5 {[%emt 0:06:30]} Rc5 {[%emt 0:06:30]} 19. Nbd4 {[%emt 0:05:30]} Bxf3 {[%emt 0:05:30]} 20. Nxf3 {[%emt 0:00:00]} Nxe5 {[%emt 0:00:30]} 21. Nxe5 {[%emt 0:02:00]} Bxe5 {[%emt 0:00:30]} 22. Bxe5 {[%emt 0:00:30]} Rxe5 {[%emt 0:00:00]} 23. Bf3 {[%emt 0:00:30]} Nd5 {[%emt 0:00:00]} 24. Rfe1 {[%emt 0:02:30]} Rxe1+ {[%emt 0:00:30]} 25. Rxe1 {[%emt 0:00:30]} e6 {[%emt 0:00:30]} 26. Kf1 {[%emt 0:06:30]} Kf8 {[%emt 0:00:30]} 27. Rc1 {[%emt 0:01:39]} Ke7 {[%emt 0:00:30]} 28. g3 {[%emt 0:00:53]} Kd7 {[%emt 0:03:30]} 29. Ke2 {[%emt 0:03:15]} Rc8 {[%emt 0:00:30]} 30. Rxc8 {[%emt 0:02:20]} Kxc8 {[%emt 0:00:00]} 31. a3 {[%emt 0:02:05]} Kc7 {[%emt 0:00:00]} 32. Kd3 {[%emt 0:01:26]} Kd6 {[%emt 0:00:30]} 33. Kc4 {[%emt 0:00:38]} b6 {[%emt 0:00:30]} 34. Bg2 {[%emt 0:02:54]} g5 {[%emt 0:01:30]} 35. Bf3 {[%emt 0:02:24]} f5 {[%emt 0:00:30]} 36. Bg2 {[%emt 0:00:22]} Nc7 {[%emt 0:00:30]} 37. Bh1 {[%emt 0:01:00]} e5 {[%emt 0:00:30]} 38. a4 {[%emt 0:01:49]} e4 {[%emt 0:00:30]} 39. Bg2 {[%emt 0:01:29]} (39. g4 $142) 39... Ke5 $19 {[%emt 0:00:30]} 40. Kc3 {[%emt 0:00:00]} f4 {[%emt 0:00:00]} 41. Kd2 {[%emt 0:04:16]} Kd4 {[%emt 0:01:00]} 42. Bf1 {[%emt 0:00:30]} Nd5 {[%emt 0:01:30]} 43. Bc4 {[%emt 0:00:30]} Nf6 {[%emt 0:00:30]} 44. Be6 {[%emt 0:01:30]} h5 {[%emt 0:01:30]} 45. h3 {[%emt 0:00:30]} h4 {[%emt 0:00:30]} 46. gxh4 {[%emt 0:00:30]} gxh4 {[%emt 0:00:30]} 47. Bc4 {[%emt 0:00:30]} a5 {[%emt 0:00:30]} 48. Ke2 {[%emt 0:00:30]} Nd5 {[%emt 0:00:30]} 49. Kd2 {[%emt 0:00:30]} f3 {[%emt 0:00:30]} 50. Bb5 {[%emt 0:00:30]} Nf4 {[%emt 0:00:30]} 51. Bf1 {[%emt 0:00:30]} Nd3 {[%emt 0:00:00]} 0-1

[Event "World Junior U20 Open 2018"]
[Site "Gebze"]
[Date "2018.09.08"]
[Round "5.77"]
[White "Samani, Yamac"]
[Black "Helander, Benjamin"]
[Result "1-0"]
[ECO "C00"]
[WhiteElo "2226"]
[BlackElo "1994"]
[Annotator "NA"]
[PlyCount "56"]
[EventDate "2018.09.05"]
[EventType "swiss"]
[EventCountry "TUR"]
[SourceTitle "playchess.com"]
[Source "ChessBase"]
[SourceQuality "1"]
[TimeControl "40/5400+30:1800+30"]

1. e4 {[%emt 0:00:30]} e6 {[%emt 0:00:30]} 2. d3 {[%emt 0:00:30]} d5 {[%emt 0:00:30]} 3. Qe2 {[%emt 0:00:30]} Nf6 {[%emt 0:00:30]} 4. Nf3 {[%emt 0:00:30]} Be7 {[%emt 0:01:30]} 5. g3 {[%emt 0:00:30]} c5 {[%emt 0:00:30]} 6. Bg2 {[%emt 0:00:00]} Nc6 {[%emt 0:00:30]} 7. O-O {[%emt 0:00:00]} O-O {[%emt 0:00:30]} 8. e5 {[%emt 0:00:30]} Nd7 {[%emt 0:00:00]} 9. c4 {[%emt 0:00:30]} d4 {[%emt 0:06:00]} 10. h4 {[%emt 0:01:30]} Rb8 {[%emt 0:00:30]} 11. Bf4 {[%emt 0:00:30]} b5 {[%emt 0:01:30]} 12. b3 {[%emt 0:01:30]} Qc7 {[%emt 0:01:30]} 13. Nbd2 {[%emt 0:00:30]} a5 {[%emt 0:05:30]} 14. Rfe1 {[%emt 0:00:30]} a4 {[%emt 0:07:30]} 15. Ne4 {[%emt 0:09:30]} axb3 {[%emt 0:07:30]} 16. axb3 {[%emt 0:00:30]} bxc4 {[%emt 0:02:30]} 17. bxc4 {[%emt 0:00:00]} Bb7 {[%emt 0:02:30]} 18. h5 {[%emt 0:20:00]} Ra8 {[%emt 0:14:30]} 19. Rab1 {[%emt 0:01:30]} Rfb8 {[%emt 0:01:30]} 20. h6 {[%emt 0:02:30]} g6 {[%emt 0:00:30]} 21. Nd6 {[%emt 0:01:30]} Bc8 {[%emt 0:08:30]} 22. Rxb8 {[%emt 0:01:30]} Rxb8 {[%emt 0:02:30]} 23. Ng5 {[%emt 0:05:30]} Bxd6 {[%emt 0:15:40]} 24. exd6 {[%emt 0:00:30]} Qb6 {[%emt 0:01:46]} 25. Nxf7 {[%emt 0:01:30]} Nf6 {[%emt 0:03:17]} 26. Ne5 {[%emt 0:00:30]} Nxe5 {[%emt 0:01:42]} 27. Qxe5 {[%emt 0:00:30]} Qd8 {[%emt 0:01:36]} 28. d7 {[%emt 0:00:30]} Ra8 {[%emt 0:00:38]} 1-0

[Event "World Junior U20 Open 2018"]
[Site "Gebze"]
[Date "2018.09.08"]
[Round "5.78"]
[White "Tasdogen, Dincer"]
[Black "Nurgaliyev, Sauat"]
[Result "1-0"]
[ECO "C49"]
[WhiteElo "2329"]
[BlackElo "1685"]
[Annotator "NA"]
[PlyCount "95"]
[EventDate "2018.09.05"]
[EventType "swiss"]
[EventCountry "TUR"]
[SourceTitle "playchess.com"]
[Source "ChessBase"]
[SourceQuality "1"]
[TimeControl "40/5400+30:1800+30"]

1. e4 {[%emt 0:00:30]} e5 {[%emt 0:00:30]} 2. Nf3 {[%emt 0:00:00]} Nc6 {[%emt 0:00:30]} 3. Nc3 {[%emt 0:00:00]} Nf6 {[%emt 0:00:30]} 4. Bb5 {[%emt 0:00:00]} Bb4 {[%emt 0:12:30]} 5. O-O {[%emt 0:00:00]} O-O {[%emt 0:00:30]} 6. d3 {[%emt 0:00:00]} d6 {[%emt 0:08:30]} 7. Bg5 {[%emt 0:00:00]} Be6 {[%emt 0:05:30]} 8. Ne2 {[%emt 0:02:30]} Bg4 {[%emt 0:06:30]} 9. c3 {[%emt 0:05:30]} Ba5 {[%emt 0:03:30]} 10. Ng3 {[%emt 0:01:30]} h6 {[%emt 0:02:30]} 11. Be3 {[%emt 0:02:30]} Ne7 {[%emt 0:08:30]} 12. h3 {[%emt 0:00:30]} Be6 {[%emt 0:02:30]} 13. d4 {[%emt 0:01:30]} Ng6 {[%emt 0:08:30]} 14. a4 {[%emt 0:01:30]} c6 {[%emt 0:01:30]} 15. Bd3 {[%emt 0:01:30]} Bc7 {[%emt 0:05:30]} 16. c4 {[%emt 0:06:30]} exd4 {[%emt 0:03:30]} 17. Nxd4 {[%emt 0:01:30]} Ne5 {[%emt 0:02:30]} 18. Rc1 {[%emt 0:05:30]} Nfd7 {[%emt 0:08:44]} 19. Be2 {[%emt 0:01:30]} Qh4 {[%emt 0:09:25]} 20. Kh2 {[%emt 0:08:30]} Nf6 {[%emt 0:04:53]} 21. Nxe6 {[%emt 0:00:30]} fxe6 {[%emt 0:00:42]} 22. f4 {[%emt 0:01:30]} Nfd7 {[%emt 0:02:39]} 23. fxe5 {[%emt 0:02:30]} Nxe5 {[%emt 0:00:50]} 24. Rxf8+ {[%emt 0:02:30]} Rxf8 {[%emt 0:00:04]} 25. Qe1 {[%emt 0:01:30]} d5 {[%emt 0:00:38]} 26. cxd5 {[%emt 0:00:00]} exd5 {[%emt 0:00:19]} 27. exd5 {[%emt 0:00:00]} Bb8 {[%emt 0:00:41]} 28. dxc6 {[%emt 0:02:30]} bxc6 {[%emt 0:00:31]} 29. Kh1 {[%emt 0:00:30]} g5 {[%emt 0:01:01]} 30. Nh5 {[%emt 0:02:30]} Qxa4 {[%emt 0:00:25]} 31. Qc3 {[%emt 0:01:30]} Qe4 {[%emt 0:00:36]} 32. Qb3+ {[%emt 0:01:30]} Kh8 {[%emt 0:00:22]} 33. Qe6 {[%emt 0:00:30]} Kh7 {[%emt 0:00:31]} 34. Qe7+ {[%emt 0:00:30]} Rf7 {[%emt 0:00:28]} 35. Qxf7+ {[%emt 0:00:30]} Nxf7 {[%emt 0:00:17]} 36. Nf6+ {[%emt 0:00:00]} Kg7 {[%emt 0:00:10]} 37. Nxe4 {[%emt 0:00:00]} Ne5 {[%emt 0:00:00]} 38. Bd4 {[%emt 0:00:30]} Kg6 {[%emt 0:00:13]} 39. Bxe5 {[%emt 0:00:00]} Bxe5 {[%emt 0:00:08]} 40. Bg4 {[%emt 0:00:00]} h5 {[%emt 0:00:04]} 41. Rxc6+ {[%emt 0:00:30]} Kg7 {[%emt 0:30:30]} 42. Bf5 {[%emt 0:00:00]} Bxb2 {[%emt 0:00:00]} 43. Rc7+ {[%emt 0:00:00]} Kf8 {[%emt 0:00:00]} 44. Nxg5 {[%emt 0:00:30]} a5 {[%emt 0:00:00]} 45. Ne6+ {[%emt 0:00:00]} Kg8 {[%emt 0:00:00]} 46. Bg6 {[%emt 0:00:00]} Bf6 {[%emt 0:00:00]} 47. Rc8+ {[%emt 0:00:00]} Bd8 {[%emt 0:00:00]} 48. Rxd8# {[%emt 0:00:00]} 1-0

[Event "World Junior U20 Open 2018"]
[Site "Gebze"]
[Date "2018.09.08"]
[Round "5.79"]
[White "Noboa, Kevin"]
[Black "Maltezeanu, Stefan"]
[Result "1-0"]
[ECO "D93"]
[WhiteElo "2256"]
[BlackElo "2089"]
[Annotator "NA"]
[PlyCount "77"]
[EventDate "2018.09.05"]
[EventType "swiss"]
[EventCountry "TUR"]
[SourceTitle "playchess.com"]
[Source "ChessBase"]
[SourceQuality "1"]
[TimeControl "40/5400+30:1800+30"]

1. d4 {[%emt 0:05:30]} Nf6 {[%emt 0:00:30]} 2. c4 {[%emt 0:00:00]} g6 {[%emt 0:00:30]} 3. Nc3 {[%emt 0:00:00]} Bg7 {[%emt 0:00:00]} 4. Nf3 {[%emt 0:00:30]} O-O {[%emt 0:00:00]} 5. Bf4 {[%emt 0:00:30]} d5 {[%emt 0:01:30]} 6. Rc1 {[%emt 0:00:30]} c6 {[%emt 0:02:30]} 7. e3 {[%emt 0:00:30]} Bf5 {[%emt 0:02:30]} 8. Be2 {[%emt 0:02:30]} dxc4 {[%emt 0:06:30]} 9. Bxc4 {[%emt 0:00:30]} Nbd7 {[%emt 0:13:30]} 10. h3 {[%emt 0:02:30]} Nb6 {[%emt 0:00:30]} 11. Bb3 {[%emt 0:02:30]} Nbd5 {[%emt 0:00:30]} 12. Be5 $14 {[%emt 0:04:30]} Qd7 {[%emt 0:07:30]} 13. O-O {[%emt 0:07:30]} Rac8 {[%emt 0:10:30]} 14. Na4 {[%emt 0:06:30]} b6 {[%emt 0:02:30]} 15. Qe2 {[%emt 0:01:30]} Nb4 {[%emt 0:03:30]} 16. Rfd1 {[%emt 0:02:30]} Be6 {[%emt 0:02:30]} 17. Bxe6 {[%emt 0:03:30]} Qxe6 {[%emt 0:00:30]} 18. a3 {[%emt 0:06:30]} Qb3 {[%emt 0:07:30]} 19. Nc3 {[%emt 0:03:30]} Nbd5 {[%emt 0:04:30]} 20. e4 {[%emt 0:00:30]} Nxc3 {[%emt 0:00:00]} 21. Rxc3 {[%emt 0:00:30]} Qa4 {[%emt 0:03:00]} 22. Bxf6 {[%emt 0:07:30]} Bxf6 {[%emt 0:00:30]} 23. Rdc1 {[%emt 0:00:30]} Rfd8 {[%emt 0:06:30]} 24. e5 {[%emt 0:01:30]} Bg7 {[%emt 0:00:30]} 25. Qc4 {[%emt 0:03:30]} Qxc4 {[%emt 0:05:07]} 26. Rxc4 {[%emt 0:00:30]} f6 {[%emt 0:00:02]} 27. Rxc6 {[%emt 0:01:30]} Rxc6 {[%emt 0:00:30]} 28. Rxc6 {[%emt 0:00:00]} fxe5 {[%emt 0:00:21]} 29. dxe5 {[%emt 0:00:00]} Rd1+ {[%emt 0:00:30]} 30. Kh2 {[%emt 0:00:30]} h6 {[%emt 0:03:39]} 31. Rc7 {[%emt 0:00:30]} Rb1 {[%emt 0:00:23]} 32. b4 {[%emt 0:05:30]} a5 {[%emt 0:02:51]} 33. bxa5 {[%emt 0:04:30]} bxa5 {[%emt 0:00:14]} 34. Rxe7 {[%emt 0:00:00]} Rb3 {[%emt 0:08:28]} 35. e6 {[%emt 0:01:00]} Kf8 {[%emt 0:00:32]} 36. Rf7+ {[%emt 0:00:30]} Kg8 {[%emt 0:00:05]} 37. Ra7 {[%emt 0:00:30]} Rb6 {[%emt 0:01:09]} 38. Ra8+ {[%emt 0:00:30]} Kh7 {[%emt 0:00:34]} 39. e7 {[%emt 0:00:00]} 1-0

[Event "World Junior U20 Open 2018"]
[Site "Gebze"]
[Date "2018.09.08"]
[Round "5.80"]
[White "Kwon, Sehyun"]
[Black "Tuna, Alp"]
[Result "1-0"]
[ECO "B51"]
[WhiteElo "2129"]
[BlackElo "2253"]
[Annotator "NA"]
[PlyCount "54"]
[EventDate "2018.09.05"]
[EventType "swiss"]
[EventCountry "TUR"]
[SourceTitle "playchess.com"]
[Source "ChessBase"]
[SourceQuality "1"]
[TimeControl "40/5400+30:1800+30"]

1. e4 {[%emt 0:01:30]} c5 {[%emt 0:00:30]} 2. Nf3 {[%emt 0:00:00]} d6 {[%emt 0:00:30]} 3. Bb5+ {[%emt 0:00:00]} Nc6 {[%emt 0:00:00]} 4. Bxc6+ {[%emt 0:02:30]} bxc6 {[%emt 0:00:00]} 5. O-O {[%emt 0:01:30]} e5 {[%emt 0:00:00]} 6. c3 {[%emt 0:00:30]} Be7 {[%emt 0:00:00]} 7. d4 {[%emt 0:02:30]} f5 {[%emt 0:01:30]} 8. dxe5 {[%emt 0:27:30]} fxe4 {[%emt 0:00:00]} 9. exd6 {[%emt 0:00:30]} Bxd6 {[%emt 0:07:00]} 10. Re1 {[%emt 0:07:30]} Nf6 {[%emt 0:02:30]} 11. Nbd2 {[%emt 0:11:30]} Bf5 {[%emt 0:11:30]} 12. Qb3 {[%emt 0:03:30]} Qc7 {[%emt 0:16:30]} 13. h3 {[%emt 0:03:30]} Kf8 {[%emt 0:16:30]} 14. Nh4 {[%emt 0:05:30]} Bg6 {[%emt 0:10:30]} 15. Nc4 {[%emt 0:10:43]} Bh2+ {[%emt 0:08:30]} 16. Kh1 {[%emt 0:00:46]} Rb8 $18 {[%emt 0:00:30]} 17. Qa3 {[%emt 0:01:01]} Rb5 {[%emt 0:00:30]} 18. Be3 {[%emt 0:01:08]} Kf7 {[%emt 0:00:30]} 19. Bxc5 {[%emt 0:01:25]} Rd8 {[%emt 0:02:30]} 20. Rad1 {[%emt 0:02:11]} Nd5 {[%emt 0:00:30]} 21. Nxg6 {[%emt 0:00:37]} hxg6 {[%emt 0:00:00]} 22. Rxe4 {[%emt 0:01:45]} Nf6 {[%emt 0:05:25]} 23. Re7+ {[%emt 0:01:54]} Qxe7 {[%emt 0:00:21]} 24. Bxe7 {[%emt 0:00:35]} Rxd1+ {[%emt 0:00:44]} 25. Kxh2 {[%emt 0:00:00]} Ke6 {[%emt 0:00:29]} 26. Bxf6 {[%emt 0:00:24]} gxf6 {[%emt 0:00:06]} 27. Qxa7 {[%emt 0:00:00]} Kd5 {[%emt 0:01:38]} 1-0

[Event "World Junior U20 Open 2018"]
[Site "Gebze"]
[Date "2018.09.08"]
[Round "5.81"]
[White "Caglar, Ahmet Ata"]
[Black "Dionizio, Andre Filipe Nascim"]
[Result "1-0"]
[ECO "D74"]
[WhiteElo "2071"]
[BlackElo "2010"]
[Annotator "NA"]
[PlyCount "83"]
[EventDate "2018.09.05"]
[EventType "swiss"]
[EventCountry "TUR"]
[SourceTitle "playchess.com"]
[Source "ChessBase"]
[SourceQuality "1"]
[TimeControl "40/5400+30:1800+30"]

1. Nf3 {[%emt 0:00:30]} d5 {[%emt 0:00:30]} 2. c4 {[%emt 0:00:30]} Nf6 {[%emt 0:00:30]} 3. cxd5 {[%emt 0:00:30]} Nxd5 {[%emt 0:00:00]} 4. g3 {[%emt 0:00:00]} g6 {[%emt 0:00:00]} 5. Bg2 {[%emt 0:00:00]} Bg7 {[%emt 0:00:30]} 6. O-O {[%emt 0:00:30]} O-O {[%emt 0:00:30]} 7. d4 {[%emt 0:00:30]} c6 {[%emt 0:03:30]} 8. e4 {[%emt 0:02:30]} Nf6 {[%emt 0:01:30]} 9. Nc3 {[%emt 0:00:00]} Bg4 {[%emt 0:03:30]} 10. h3 {[%emt 0:01:00]} Bxf3 {[%emt 0:00:30]} 11. Bxf3 {[%emt 0:00:00]} Qd7 {[%emt 0:01:30]} 12. Bg2 {[%emt 0:00:00]} Rd8 {[%emt 0:00:30]} 13. Be3 {[%emt 0:00:30]} Na6 {[%emt 0:02:30]} 14. Qe2 {[%emt 0:04:30]} Rac8 {[%emt 0:05:30]} 15. Rfd1 {[%emt 0:00:30]} e6 {[%emt 0:03:30]} 16. Rd2 {[%emt 0:07:30]} Qe7 {[%emt 0:00:30]} 17. Rad1 {[%emt 0:00:30]} Nc7 {[%emt 0:05:30]} 18. Na4 {[%emt 0:06:30]} Nd7 {[%emt 0:07:30]} 19. h4 {[%emt 0:01:30]} h6 {[%emt 0:00:30]} 20. Rd3 {[%emt 0:04:30]} Ne8 {[%emt 0:05:30]} 21. Qd2 {[%emt 0:01:30]} Kh7 {[%emt 0:01:30]} 22. b3 {[%emt 0:07:30]} f5 {[%emt 0:08:30]} 23. Nc5 {[%emt 0:02:30]} b6 {[%emt 0:05:30]} 24. Nb7 {[%emt 0:02:30]} Ne5 {[%emt 0:06:30]} 25. Nxd8 {[%emt 0:01:30]} Nxd3 {[%emt 0:00:30]} 26. Nxc6 {[%emt 0:00:30]} Rxc6 {[%emt 0:00:30]} 27. Qxd3 {[%emt 0:00:00]} Rc8 {[%emt 0:03:30]} 28. exf5 {[%emt 0:02:00]} exf5 {[%emt 0:00:30]} 29. h5 {[%emt 0:00:00]} Qf6 {[%emt 0:03:30]} 30. hxg6+ {[%emt 0:00:00]} Qxg6 {[%emt 0:00:30]} 31. Bf4 {[%emt 0:00:30]} Rd8 {[%emt 0:00:30]} 32. d5 {[%emt 0:00:30]} Nd6 {[%emt 0:03:30]} 33. Re1 {[%emt 0:00:30]} Bf8 {[%emt 0:01:30]} 34. Re6 {[%emt 0:01:30]} Qf7 {[%emt 0:00:30]} 35. Qe3 {[%emt 0:02:30]} h5 {[%emt 0:02:30]} 36. Be5 {[%emt 0:01:30]} Ne8 {[%emt 0:05:22]} 37. Qg5 {[%emt 0:01:30]} Rd7 {[%emt 0:00:28]} 38. Bh3 {[%emt 0:01:30]} Ng7 {[%emt 0:00:36]} 39. Bxg7 {[%emt 0:02:30]} Bxg7 {[%emt 0:00:43]} 40. Bxf5+ {[%emt 0:00:00]} Kg8 {[%emt 0:00:00]} 41. Bg6 {[%emt 0:01:00]} Qf3 {[%emt 0:02:51]} 42. Re8+ {[%emt 0:00:00]} 1-0

[Event "World Junior U20 Open 2018"]
[Site "Gebze"]
[Date "2018.09.08"]
[Round "5.82"]
[White "Rajic, Ivan"]
[Black "Zhu, Yi"]
[Result "0-1"]
[ECO "C60"]
[WhiteElo "2021"]
[BlackElo "2335"]
[Annotator "NA"]
[PlyCount "71"]
[EventDate "2018.09.05"]
[EventType "swiss"]
[EventCountry "TUR"]
[SourceTitle "playchess.com"]
[Source "ChessBase"]
[SourceQuality "1"]
[TimeControl "40/5400+30:1800+30"]

1. e4 {[%emt 0:00:30]} e5 {[%emt 0:00:30]} 2. Nf3 {[%emt 0:00:00]} Nc6 {[%emt 0:02:30]} 3. Bb5 {[%emt 0:00:00]} Qf6 {[%emt 0:04:30]} 4. O-O {[%emt 0:04:30]} a6 {[%emt 0:02:30] C60: Ruy Lopez: Unusual Black 3rd moves and 3...g6} 5. Ba4 {[%emt 0:01:30]} Bc5 {[%emt 0:03:30]} 6. c3 {[%emt 0:01:30]} (6. Nc3 Nge7 7. Nd5 Qd6 8. c3 Nxd5 9. exd5 Qxd5 10. d4 exd4 11. Re1+ Be7 12. Bg5 f6 13. Bf4 {1-0 (39) Iordachescu,V (2644)-Saidov,B (2389) Tashkent 2012}) 6... Nge7 {[%emt 0:01:30]} 7. Re1 {[%emt 0:02:30]} b5 {[%emt 0:02:30]} 8. Bc2 {[%emt 0:01:30]} d6 {[%emt 0:05:30]} 9. d4 {[%emt 0:03:30]} Bb6 {[%emt 0:06:30]} 10. d5 $146 {[%emt 0:05:30]} ({Predecessor:} 10. Bg5 Qg6 11. Bxe7 Kxe7 12. Nh4 Qf6 13. Nf5+ Kf8 14. d5 Bxf5 15. dxc6 Bxf2+ {0-1 (23) Shchukin,M (1820)-Polosin,E (2034) St Petersburg 2015}) 10... Nd8 {[%emt 0:01:30]} 11. Bg5 {[%emt 0:01:30]} Qg6 {[%emt 0:02:30]} 12. Bxe7 {[%emt 0:00:30]} Kxe7 {[%emt 0:03:30]} 13. Nbd2 {[%emt 0:03:30]} h5 {[%emt 0:02:30]} 14. Nh4 {[%emt 0:09:30]} Qf6 {[%emt 0:01:30]} 15. Nf5+ {[%emt 0:03:30]} Kf8 {[%emt 0:02:30]} 16. a4 {[%emt 0:04:30]} Rb8 {[%emt 0:03:30]} 17. axb5 {[%emt 0:04:30]} axb5 {[%emt 0:01:30]} 18. Qf3 {[%emt 0:09:30]} g5 {[%emt 0:09:30]} 19. b4 {[%emt 0:08:30]} g4 {[%emt 0:05:30]} 20. Qg3 {[%emt 0:01:30]} Qg5 {[%emt 0:03:30]} 21. Nf3 {[%emt 0:02:30]} Qf4 {[%emt 0:06:30]} 22. Qxf4 {[%emt 0:03:30]} exf4 {[%emt 0:01:30]} 23. N3d4 {[%emt 0:00:30]} h4 {[%emt 0:00:30]} 24. Kf1 {[%emt 0:01:30]} Bxf5 {[%emt 0:00:30]} 25. Nxf5 {[%emt 0:01:30]} f6 $16 {[%emt 0:02:30]} 26. Bd3 {[%emt 0:03:30]} Nf7 {[%emt 0:00:30]} 27. Nd4 {[%emt 0:03:57]} Ne5 {[%emt 0:00:30]} 28. Ne6+ {[%emt 0:00:30]} Kf7 {[%emt 0:00:30]} 29. Nxf4 {[%emt 0:01:28]} g3 {[%emt 0:00:00]} 30. fxg3 {[%emt 0:07:56]} hxg3 {[%emt 0:01:00]} 31. h3 {[%emt 0:00:45]} Rh4 {[%emt 0:00:00]} 32. Ne2 {[%emt 0:02:31]} Nxd3 {[%emt 0:01:00]} 33. Nxg3 {[%emt 0:02:52]} Rf4+ {[%emt 0:01:30]} 34. Ke2 {[%emt 0:00:35]} Nxe1 {[%emt 0:00:30]} 35. Rxe1 {[%emt 0:00:00]} Rg8 {[%emt 0:00:00]} 36. Ra1 {[%emt 0:00:54]} 0-1